[Event "FIDE WY-U16 Olympiad 2022"]
[Site "Nakhchivan"]
[Date "2022.10.04"]
[Round "3.10"]
[White "Hasanli, Rza"]
[Black "Cebotari, Stanislav"]
[Result "0-1"]
[ECO "A16"]
[WhiteElo "1566"]
[BlackElo "2047"]
[Annotator "TA"]
[PlyCount "82"]
[EventDate "2022.10.02"]
[EventType "team-tourn"]
[EventCountry "AZE"]
[SourceTitle "playchess.com"]
[Source "ChessBase"]
[SourceQuality "1"]
[WhiteTeam "Azerbaijan"]
[BlackTeam "Moldova"]
[WhiteTeamCountry "AZE"]
[BlackTeamCountry "MDA"]
[TimeControl "40/5400+30:1800+30"]

{[%evp 9,82,6,21,22,54,19,54,59,50,30,48,42,56,22,25,-40,-28,-67,-63,-60,-58,-46,-31,-26,-37,-242,-125,-202,-188,-262,-235,-266,-246,-259,-256,-294,-200,-226,-229,-279,-199,-205,-205,-246,-245,-245,-245,-325,-247,-279,-282,-351,-351,-351,-348,-351,-351,-350,-302,-311,-306,-341,-341,-838,-787,-808,-789,-1009,-1013,-997,-1008,-1062,-1090,-1059,-1017]} 1. c4 {[%emt 0:00:30]} Nf6 {[%emt 0:00:06]} 2. Nc3 {[%emt 0:00:23]} g6 {[%emt 0:00:04]} 3. e4 {[%emt 0:01:36]} d6 {[%emt 0:00:00]} 4. g3 {[%emt 0:00:12]} Bg7 {[%emt 0:00:06]} 5. Bg2 {[%emt 0:00:09]} e5 {[%emt 0:00:40]} 6. Nge2 {[%emt 0:00:11] A16: English Opening: 1...Nf6 with ...d5.} Be6 {[%emt 0:00:48]} 7. b3 {[%emt 0:01:03] [#]} a5 $146 {[%emt 0:01:22]} ({Predecessor:} 7... Qd7 8. h3 O-O 9. Bb2 a5 10. d4 exd4 11. Nxd4 Nc6 12. Nxe6 fxe6 13. O-O Nh5 {1-0 (65) Nemeth,Z (2317)-Soos,A (2378) Hungary 2014}) 8. d4 {[%emt 0:00:22] White is slightly better.} O-O {[%emt 0:00:41]} 9. d5 {[%emt 0:00:20]} Bc8 {[%emt 0:00:37]} 10. O-O {[%emt 0:00:18]} Na6 {[%emt 0:00:51]} 11. f3 {[%emt 0:05:49]} Nh5 {[%emt 0:04:36]} 12. g4 {[%emt 0:13:16]} (12. a3 $11) 12... Nf4 $1 $15 {[%emt 0:00:15]} 13. Ng3 {[%emt 0:00:06]} Qh4 {[%emt 0:04:11] Black is more active.} 14. Be3 {[%emt 0:01:31]} h5 {[%emt 0:02:38]} 15. gxh5 $1 {[%emt 0:02:46]} (15. Bxf4 exf4 16. Nge2 hxg4 17. fxg4 Bxg4) (15. Bxf4 $2 exf4 16. Nge2 hxg4 17. fxg4 Bxg4 $19) 15... Nxg2 {[%emt 0:02:58]} (15... gxh5 16. Kh1) 16. Kxg2 {[%emt 0:03:08]} Bh3+ {[%emt 0:00:06]} 17. Kg1 $2 {[%emt 0:01:11] [#] Black continues to play with concentration.} (17. Kh1 $1 $15) 17... Bxf1 {[%emt 0:00:07]} (17... f5 $1 $19 {[%cal Rf5f4] aiming for ...f4.} 18. h6 (18. hxg6 $2 f4 $19) 18... Bf6 19. exf5 gxf5) 18. Qxf1 {[%emt 0:00:43] [#]} (18. Qd2 $17) 18... f5 $1 $36 {[%emt 0:00:58][%cal Bf7f5,Bf5f4][%mdl 2080] Black has strong initiative.} 19. Bf2 {[%emt 0:01:58]} (19. exf5 $142 gxf5 20. Bd2) 19... f4 {[%emt 0:00:16]} ({Worse is} 19... gxh5 20. Qg2 (20. Nxf5 Qg5+ 21. Qg2 Qxg2+ 22. Kxg2 Kh7 $15) 20... Qf4 21. Nxf5 Rxf5 22. exf5 $11) 20. Nge2 {[%emt 0:01:05]} Qxh5 {[%emt 0:00:15]} 21. Qg2 {[%emt 0:01:13]} Kf7 {[%emt 0:00:21]} 22. Kf1 {[%emt 0:08:57]} Nb4 {[%emt 0:01:34]} 23. Rd1 {[%emt 0:02:18]} Rh8 {[%emt 0:00:56]} 24. Ng1 {[%emt 0:00:48]} Nc2 {[%emt 0:00:42]} 25. h3 {[%emt 0:04:27]} Bf6 {[%emt 0:04:40]} 26. Rd3 {[%emt 0:02:10]} Nb4 {[%emt 0:01:07][%cal Bc2b4,Bb4a6,Ba6c5][%mdl 32]} 27. Rd2 {[%emt 0:00:34]} Bh4 {[%emt 0:00:15]} 28. Nd1 {[%emt 0:00:25]} Na6 {[%emt 0:01:07][%cal Oa5a4]} 29. Nc3 {[%emt 0:03:15]} Qg5 {[%emt 0:03:11]} 30. Qg4 {[%emt 0:05:19]} Qxg4 {[%emt 0:00:15]} 31. fxg4 {[%emt 0:00:15]} Bxf2 {[%emt 0:00:07]} 32. Kxf2 {[%emt 0:01:25]} Ke7 {[%emt 0:00:31]} 33. Kg2 {[%emt 0:00:38]} Nc5 {[%emt 0:00:21]} 34. Nf3 {[%emt 0:02:18]} Rh6 {[%emt 0:00:30]} 35. h4 {[%emt 0:01:37]} Rah8 {[%emt 0:01:32] ...Rxh4 is the strong threat.} 36. Kh3 {[%emt 0:03:39] [#]} (36. h5) 36... Rxh4+ $3 {[%emt 0:00:35][%mdl 512] Black is clearly winning.} 37. Nxh4 {[%emt 0:00:40]} g5 {[%emt 0:00:00][%cal Bg6g5,Bg5h4][%mdl 96] Pin} 38. Rh2 {[%emt 0:04:41]} Rxh4+ {[%emt 0:01:20]} 39. Kg2 {[%emt 0:00:11]} Rxg4+ {[%emt 0:00:09]} 40. Kf2 {[%emt 0:01:03]} Rh4 {[%emt 0:00:54]} 41. Rxh4 {[%emt 0:30:30]} gxh4 {[%emt 0:30:01] Weighted Error Value: White=0.53/Black=0.16 (very precise)} 0-1

[Event "FIDE WY-U16 Olympiad 2022"]
[Site "Nakhchivan"]
[Date "2022.10.04"]
[Round "3.11"]
[White "Hernandez Izquierdo, Jose A."]
[Black "Orujov, Farid"]
[Result "1/2-1/2"]
[ECO "C42"]
[WhiteElo "2140"]
[BlackElo "2266"]
[Annotator "TA"]
[PlyCount "91"]
[EventDate "2022.10.02"]
[EventType "team-tourn"]
[EventCountry "AZE"]
[SourceTitle "playchess.com"]
[Source "ChessBase"]
[SourceQuality "1"]
[WhiteTeam "Cuba"]
[WhiteTeamCountry "CUB"]
[TimeControl "40/5400+30:1800+30"]

{[%evp 17,91,0,14,0,0,-15,0,0,-2,-6,-24,-34,-35,-47,-57,-66,-65,-85,-78,-90,-85,-82,-81,-114,-116,-110,-109,-102,-93,-104,-95,-88,-96,-106,-87,-107,-104,-221,-222,-215,-220,-218,-218,-202,-188,-180,-156,-227,-197,-268,-220,-179,-133,-131,-86,-218,-218,-250,-86,-86,-8,-8,-8,-8,-8,-8,0,0,0,-8,0,0,0,0,8,8]} 1. e4 {[%emt 0:00:04]} e5 {[%emt 0:00:01]} 2. Nf3 {[%emt 0:00:20]} Nf6 {[%emt 0:00:01]} 3. Nxe5 {[%emt 0:00:12]} d6 {[%emt 0:00:01]} 4. Nf3 {[%emt 0:00:10]} Nxe4 {[%emt 0:00:02]} 5. Nc3 {[%emt 0:00:12]} Nxc3 {[%emt 0:00:02]} 6. dxc3 {[%emt 0:00:07]} Be7 {[%emt 0:00:09]} 7. Bf4 {[%emt 0:00:28]} O-O {[%emt 0:00:10]} 8. Qd2 {[%emt 0:00:35]} Nd7 {[%emt 0:00:01]} 9. O-O-O {[%emt 0:01:04]} Nc5 {[%emt 0:00:02]} 10. Re1 {[%emt 0:02:28] C42: Petroff Defence: 3 Nxe5 and unusual White 3rd moves.} Re8 {[%emt 0:07:19]} 11. Kb1 {[%emt 0:05:28]} Bf6 {[%emt 0:18:25] [#]} 12. Bb5 $146 {[%emt 0:03:54]} ({Predecessor:} 12. Bc4 Be6 13. Bxe6 Nxe6 14. Be3 Qd7 15. Qd5 Qc6 16. c4 Qa4 17. Rd1 Rad8 18. Qb5 Qxb5 {½-½ (18) Dos Santos,M-Herzog,K LSS email 2007}) 12... Bd7 {[%emt 0:08:11]} 13. Bxd7 {[%emt 0:05:43]} Qxd7 {[%emt 0:00:38]} 14. Qd5 {[%emt 0:02:50] Inhibits Ne4.} Qg4 {[%emt 0:20:00][%csl LRf4,LRg2]} 15. Bg5 {[%emt 0:08:32]} c6 {[%emt 0:09:13]} (15... Qxg2 $2 16. Reg1 Re5 17. Rxg2 $18) 16. Qxd6 {[%emt 0:04:48]} Ne4 {[%emt 0:00:35]} 17. Qf4 {[%emt 0:06:57]} Qxg2 {[%emt 0:04:48]} 18. Rhg1 {[%emt 0:16:15]} Bxg5 {[%emt 0:00:33]} 19. Qxe4 {[%emt 0:03:23]} (19. Rxg2 $2 {too greedy.} Bxf4 20. Reg1 g6 $19) 19... Qxg1 {[%emt 0:09:08]} 20. Nxg1 {[%emt 0:00:20]} Rxe4 {[%emt 0:00:02]} 21. Rxe4 $17 {[%emt 0:00:01][%mdl 4096] Endgame KRB-KRN} Rd8 {[%emt 0:00:00][%cal Rd8d1] [#]} 22. Rd4 {[%emt 0:04:46] Inhibits Rd1+.} c5 {[%emt 0:04:02]} 23. Rxd8+ {[%emt 0:00:15]} Bxd8 {[%emt 0:00:02] KB-KN} 24. Kc1 {[%emt 0:00:19]} Bc7 {[%emt 0:02:24]} 25. h3 {[%emt 0:00:30]} f5 {[%emt 0:02:48]} 26. a4 {[%emt 0:04:39]} g5 {[%emt 0:01:50]} 27. f3 {[%emt 0:09:21]} (27. Kd2 $17) 27... Kf7 {[%emt 0:01:18]} 28. Kd2 {[%emt 0:01:29]} Kg6 {[%emt 0:02:54] aiming for ...Kh5.} 29. Ke1 {[%emt 0:00:09]} Kh5 {[%emt 0:01:49]} 30. Kf1 {[%emt 0:00:29]} Kh4 {[%emt 0:01:42]} 31. Kg2 {[%emt 0:00:24] Inhibits Bh2.} g4 {[%emt 0:01:52]} 32. fxg4 {[%emt 0:01:53]} (32. b4 $17 {was necessary.}) 32... fxg4 $19 {[%emt 0:00:00]} 33. b4 {[%emt 0:03:44]} (33. hxg4 {is a better defense.} Kxg4 34. Nh3) 33... gxh3+ {[%emt 0:03:28]} 34. Nxh3 {[%emt 0:00:12]} c4 {[%emt 0:02:18]} ({Black should play} 34... Bd6 $19 35. bxc5 Bxc5) 35. Nf2 $17 {[%emt 0:01:42]} Be5 {[%emt 0:00:37]} 36. Nd1 {[%emt 0:00:05] [#]} (36. Ne4 $17 {was the only chance.}) 36... Kg5 $1 $19 {[%emt 0:01:27]} 37. b5 {[%emt 0:00:12]} Kf4 $2 {[%emt 0:00:26]} (37... Kf6 $19 {and Black stays clearly on top. Hoping for ...Ke7.} 38. Kf3 Ke6) 38. Nb2 $17 {[%emt 0:00:09]} Bxc3 {[%emt 0:00:27]} (38... b6 $17) 39. Nxc4 $11 {[%emt 0:00:05] The position is equal.} Bb4 {[%emt 0:00:40] White must now prevent ...Ke4.} 40. c3 $1 {[%emt 0:00:50]} Bxc3 {[%emt 0:00:33]} 41. Nd6 {[%emt 0:30:06]} Ke5 {[%emt 0:11:40]} 42. Nxb7 {[%emt 0:00:00]} Kd5 {[%emt 0:03:10]} 43. a5 {[%emt 0:00:00]} Bxa5 {[%emt 0:02:19]} 44. Nxa5 {[%emt 0:00:00]} Kc5 {[%emt 0:00:03]} 45. Nc6 {[%emt 0:00:00]} Kxb5 {[%emt 0:00:05]} 46. Nxa7+ {[%emt 0:00:00] And White is the lucky defender.  Weighted Error Value: White=0.15 (very precise) /Black=0.13 (very precise)} 1/2-1/2

[Event "FIDE WY-U16 Olympiad 2022"]
[Site "Nakhchivan"]
[Date "2022.10.04"]
[Round "3.11"]
[White "Bargan, Victoria"]
[Black "Abdullabayli, Rajab"]
[Result "0-1"]
[ECO "E32"]
[WhiteElo "1703"]
[BlackElo "1547"]
[Annotator "NA RC COMBH"]
[PlyCount "106"]
[EventDate "2022.10.02"]
[EventType "team-tourn"]
[EventCountry "AZE"]
[SourceTitle "playchess.com"]
[Source "ChessBase"]
[SourceQuality "1"]
[WhiteTeam "Moldova"]
[BlackTeam "Azerbaijan"]
[WhiteTeamCountry "MDA"]
[BlackTeamCountry "AZE"]
[TimeControl "40/5400+30:1800+30"]

1. d4 {[%emt 0:00:02]} Nf6 {[%emt 0:00:06]} 2. c4 {[%emt 0:00:03]} e6 {[%emt 0:00:05]} 3. Nc3 {[%emt 0:00:04]} Bb4 {[%emt 0:00:05]} 4. Qc2 {[%emt 0:00:03]} b6 {[%emt 0:00:05]} 5. a3 {[%emt 0:00:38]} Bxc3+ {[%emt 0:00:05]} 6. Qxc3 {[%emt 0:00:16]} Bb7 {[%emt 0:00:35]} 7. Nf3 {[%emt 0:01:52]} h6 {[%emt 0:01:48]} 8. Bf4 {[%emt 0:05:41]} d6 {[%emt 0:09:53]} 9. h3 {[%emt 0:06:31]} Nbd7 {[%emt 0:02:51]} 10. e3 {[%emt 0:00:36]} Ne4 {[%emt 0:04:51]} 11. Qc2 {[%emt 0:01:14]} f5 {[%emt 0:07:29]} 12. Be2 {[%emt 0:15:06]} Qf6 {[%emt 0:14:09]} 13. Bh2 {[%emt 0:12:47]} g5 {[%emt 0:08:23]} 14. Rf1 {[%emt 0:20:17]} O-O-O {[%emt 0:17:41]} 15. O-O-O {[%emt 0:11:20]} g4 {[%emt 0:08:00]} 16. Ng1 {[%emt 0:02:22]} g3 {[%emt 0:02:26]} 17. Bxg3 {[%emt 0:06:05]} Nxg3 {[%emt 0:00:21]} 18. fxg3 {[%emt 0:00:04]} Qg5 {[%emt 0:00:08]} 19. Bf3 {[%emt 0:00:16]} Qxe3+ {[%emt 0:01:18]} 20. Kb1 {[%emt 0:05:10]} Qg5 {[%emt 0:01:50]} 21. Bxb7+ {[%emt 0:00:45]} Kxb7 {[%emt 0:00:06]} 22. Qf2 {[%emt 0:00:59]} Rhg8 {[%emt 0:00:50]} 23. Qf3+ {[%emt 0:00:24]} c6 {[%emt 0:08:24]} 24. d5 {[%emt 0:01:51]} Ne5 {[%emt 0:01:41]} 25. dxc6+ {[%emt 0:00:03]} Kc7 {[%emt 0:00:06]} 26. Qb3 {[%emt 0:01:40]} Qxg3 {[%emt 0:00:33]} 27. Qa4 {[%emt 0:00:18]} Nxc6 {[%emt 0:00:22]} 28. Ne2 {[%emt 0:00:48]} Qxg2 {[%emt 0:04:55]} 29. Nc3 {[%emt 0:00:17]} Kb7 {[%emt 0:00:22]} 30. Nb5 {[%emt 0:00:29]} a6 {[%emt 0:00:25]} 31. Nc3 {[%emt 0:01:04]} Qg7 {[%emt 0:01:01]} 32. Rfe1 {[%emt 0:00:24]} Qf6 {[%emt 0:00:24]} 33. Ne2 {[%emt 0:01:29]} f4 {[%emt 0:00:17]} 34. b4 {[%emt 0:00:12]} Qf5+ {[%emt 0:00:09]} 35. Ka2 {[%emt 0:00:17]} e5 {[%emt 0:01:31]} 36. b5 {[%emt 0:00:14]} axb5 {[%emt 0:00:04]} 37. cxb5 {[%emt 0:00:06]} Na5 {[%emt 0:00:18]} 38. Rc1 {[%emt 0:02:04]} Rc8 {[%emt 0:00:17]} 39. Qb4 {[%emt 0:01:48]} Qe6+ {[%emt 0:00:36]} 40. Kb2 {[%emt 0:00:11]} Nc4+ {[%emt 0:01:56]} 41. Ka1 {[%emt 0:30:45]} Ne3 {[%emt 0:32:22]} 42. Nc3 {[%emt 0:00:40]} Rc4 {[%emt 0:01:31]} 43. Qb3 {[%emt 0:00:09]} Rgc8 {[%emt 0:00:37]} 44. Rg1 {[%emt 0:00:29]} R8c7 {[%emt 0:00:13]} 45. Ka2 {[%emt 0:03:03]} d5 {[%emt 0:00:27]} 46. a4 {[%emt 0:01:19]} d4 {[%emt 0:00:12]} 47. a5 {[%emt 0:00:23]} dxc3 {[%emt 0:00:35]} 48. a6+ {[%emt 0:00:09]} Ka7 {[%emt 0:00:08]} 49. Rxc3 {[%emt 0:00:52]} Ra4+ {[%emt 0:00:06]} 50. Kb2 {[%emt 0:00:04]} Qxb3+ {[%emt 0:00:32]} 51. Kxb3 {[%emt 0:00:07]} Ra3+ {[%emt 0:00:28]} 52. Kxa3 {[%emt 0:00:40]} Rxc3+ {[%emt 0:00:05]} 53. Ka2 {[%emt 0:00:10]} Rc7 {[%emt 0:00:08]} 0-1

[Event "FIDE WY-U16 Olympiad 2022"]
[Site "Nakhchivan"]
[Date "2022.10.04"]
[Round "3.12"]
[White "Abdinova, Narmin"]
[Black "Caballero Ramos, Greter"]
[Result "1-0"]
[ECO "C00"]
[WhiteElo "1810"]
[BlackElo "1912"]
[Annotator "TA"]
[PlyCount "119"]
[EventDate "2022.10.02"]
[EventType "team-tourn"]
[EventCountry "AZE"]
[SourceTitle "playchess.com"]
[Source "ChessBase"]
[SourceQuality "1"]
[WhiteTeam "Azerbaijan"]
[BlackTeam "Cuba"]
[WhiteTeamCountry "AZE"]
[BlackTeamCountry "CUB"]
[TimeControl "40/5400+30:1800+30"]

{[%evp 13,119,-9,0,-19,4,-25,-15,-22,-14,-27,0,0,0,0,0,-37,-28,-32,-37,-30,-17,-47,-49,-53,-52,-49,-51,-77,-52,-47,-46,-33,-30,-70,-83,-86,-91,-133,-47,-50,-44,-44,-43,-41,-31,-33,-31,-39,-22,-41,-36,-47,-47,-47,-47,-47,-47,-47,-48,-55,0,-46,-46,-59,-15,-119,0,0,142,222,199,50,50,50,210,50,83,84,222,222,222,159,139,8,8,8,91,8,2816,2184,29961,29961,29961,29962,29964,29965,29965,29966,29969,29970,29971,29974,29974,29976,29975,29973,29965,5674]} 1. e4 {[%emt 0:00:03]} e6 {[%emt 0:00:27]} 2. Qe2 {[%emt 0:00:20]} c5 {[%emt 0:02:25]} 3. g3 {[%emt 0:00:23]} Nc6 {[%emt 0:01:04]} 4. Nf3 {[%emt 0:00:02]} g6 {[%emt 0:00:27]} 5. Bg2 {[%emt 0:00:26]} Bg7 {[%emt 0:00:14]} 6. O-O {[%emt 0:00:06]} Nge7 {[%emt 0:00:30]} 7. c3 $1 {[%emt 0:04:20] The main line 7.c3 scores better than 7.d3.} O-O {[%emt 0:01:01]} 8. Rd1 {[%emt 0:01:55] C00: French: Unusual White 2nd moves.} d5 {[%emt 0:05:24]} 9. d4 {[%emt 0:01:08]} dxe4 {[%emt 0:01:36]} 10. Qxe4 {[%emt 0:00:57] The position is equal.} cxd4 {[%emt 0:02:11]} 11. cxd4 {[%emt 0:01:22] [#]} Qb6 $146 {[%emt 0:06:06]} (11... e5 $5 {[%cal Re5d4]}) ({Predecessor:} 11... Nf5 12. Na3 Nfxd4 13. Nxd4 Bxd4 14. Be3 e5 15. Bxd4 exd4 16. Nb5 Bf5 17. Qf4 Bc2 {½-½ (30) Liu,Q (2483)-Ding,L (2679) Ho Chi Minh City 2012}) 12. Na3 {[%emt 0:09:42]} Rd8 {[%emt 0:07:50]} 13. Nc4 {[%emt 0:04:44] Prevents e5.} Qb5 {[%emt 0:03:41]} 14. Bf1 {[%emt 0:03:27]} Qd5 {[%emt 0:16:32]} 15. Qxd5 {[%emt 0:05:33]} Nxd5 {[%emt 0:01:12][%cal Be7d5,Bd5b6,Bb6a4,Ba4c3][%mdl 32]} 16. Nce5 {[%emt 0:03:34]} Bd7 {[%emt 0:05:02]} 17. Bc4 {[%emt 0:10:08]} Be8 {[%emt 0:07:10]} 18. Nxc6 {[%emt 0:05:49]} Bxc6 {[%emt 0:00:16]} 19. Ne5 {[%emt 0:00:06]} Nb6 {[%emt 0:03:12]} 20. Bb3 {[%emt 0:11:59]} Ba4 {[%emt 0:02:34]} (20... Bd5 $5 {[%cal Rd5b3]} 21. Be3 Bxb3 22. axb3 Nd5 $15) 21. Bxa4 {[%emt 0:07:28]} Nxa4 {[%emt 0:00:37]} 22. Be3 {[%emt 0:00:40]} Rac8 {[%emt 0:04:51]} 23. b3 {[%emt 0:07:03]} Nc3 {[%emt 0:00:13]} 24. Rd2 {[%emt 0:02:34]} Nd5 {[%emt 0:04:14]} 25. Nd3 {[%emt 0:02:13]} Rc3 {[%emt 0:01:06]} (25... Nxe3 $17 26. fxe3 Rxd4 $1 {[%mdl 512]}) 26. Rc1 $15 {[%emt 0:01:59]} Rdc8 {[%emt 0:01:34]} 27. Rxc3 {[%emt 0:01:36]} Rxc3 {[%emt 0:00:29]} ({But not} 27... Nxc3 28. Rc2 $11) 28. Kf1 {[%emt 0:00:34]} b6 {[%emt 0:02:09]} 29. Ke2 {[%emt 0:00:35]} Kf8 {[%emt 0:00:58]} 30. Rb2 {[%emt 0:05:04]} Ke7 {[%emt 0:02:28]} 31. Kd2 {[%emt 0:00:11][%cal Od3b4]} Kd6 {[%emt 0:11:32]} 32. Rc2 {[%emt 0:01:14] [#]} Rxd3+ {[%emt 0:00:16]} 33. Kxd3 {[%emt 0:00:12][%mdl 4096] Endgame aiming for Rc8. KRB-KBN} Nb4+ {[%emt 0:00:04]} 34. Kd2 {[%emt 0:00:16] And now Bf4+ would win.} Nxc2 {[%emt 0:00:04]} 35. Kxc2 {[%emt 0:00:04] KB-KB} Kd5 {[%emt 0:00:04]} 36. Kd3 {[%emt 0:00:07]} g5 {[%emt 0:00:23]} (36... Bf8 $15) 37. g4 {[%emt 0:02:20]} (37. Bxg5 $11 Bxd4 38. Be3) 37... h6 {[%emt 0:01:31]} 38. h3 {[%emt 0:01:39]} f6 {[%emt 0:01:06]} 39. f4 {[%emt 0:01:24]} (39. Bd2 $11) 39... gxf4 {[%emt 0:00:36]} (39... Bf8 $17 40. Bd2 Bd6 41. fxg5 hxg5) 40. Bxf4 $11 {[%emt 0:00:01]} e5 {[%emt 0:00:01]} (40... f5 $11) 41. dxe5 $1 $16 {[%emt 0:30:08]} fxe5 {[%emt 0:30:03]} 42. Bd2 {[%emt 0:00:56]} (42. Be3 $18) 42... e4+ {[%emt 0:00:28]} 43. Ke2 {[%emt 0:00:01] Threatens to win with Be3.} Bf8 $2 {[%emt 0:01:37]} ({Black should play} 43... a6 $14) 44. h4 $2 {[%emt 0:01:08]} (44. Be3 $18) 44... Ke5 {[%emt 0:00:19]} 45. Be3 {[%emt 0:01:08] Strongly threatening Kf2.} Kd5 {[%emt 0:04:33]} (45... Be7 $16 {was worth a try.}) 46. a4 $18 {[%emt 0:01:40]} Kc6 {[%emt 0:00:47]} 47. Bd4 {[%emt 0:00:29]} Be7 {[%emt 0:00:19] [#]} 48. Bg7 {[%emt 0:00:27]} (48. h5 $1 $16) 48... Bxh4 $11 {[%emt 0:00:23]} 49. Bxh6 {[%emt 0:00:03]} Kd6 {[%emt 0:00:02]} (49... Kc5 $11 {remains equal.}) 50. Ke3 {[%emt 0:02:56]} ({White should try} 50. g5 $16) 50... Kd5 $2 {[%emt 0:00:00][%mdl 8192]} (50... Kc5 $11) 51. g5 $18 {[%emt 0:00:00][%cal Bg4g5,Bg5g6,Bg6g7][%mdl 32] Hoping for g6.} a6 {[%emt 0:00:00]} 52. g6 {[%emt 0:00:00] White mates.} Ke6 {[%emt 0:00:00]} 53. Bf8 {[%emt 0:00:00]} ({Less strong is} 53. Kxe4 b5 54. axb5 axb5 $18) 53... Kf6 {[%emt 0:00:00]} 54. g7 {[%emt 0:00:00]} Kf7 {[%emt 0:00:00]} 55. Kxe4 {[%emt 0:00:00]} Bf2 {[%emt 0:00:00]} 56. Kd5 {[%emt 0:00:00]} Be3 {[%emt 0:00:00]} 57. Kc6 {[%emt 0:00:00]} Bf2 {[%emt 0:00:00]} 58. Kb7 {[%emt 0:00:00]} a5 {[%emt 0:00:00]} 59. Ka6 {[%emt 0:00:00]} Be3 {[%emt 0:00:00] [#]} 60. Bd6 {[%emt 0:00:00] Weighted Error Value: White=0.26 (precise) /Black=0.37} (60. Be7 $142 $1 {[%mdl 512]} Bd4 (60... Kg8 61. Bd8) 61. Bd8 Kg8 62. Bxb6 Be5 63. Bxa5 Kxg7 64. Bb6 Kg6 65. a5) 1-0

[Event "FIDE WY-U16 Olympiad 2022"]
[Site "Nakhchivan"]
[Date "2022.10.04"]
[Round "3.12"]
[White "Humbatova, Nazli"]
[Black "Sustov, Savva"]
[Result "0-1"]
[ECO "B34"]
[WhiteElo "1777"]
[BlackElo "1957"]
[Annotator "TA"]
[PlyCount "90"]
[EventDate "2022.10.02"]
[EventType "team-tourn"]
[EventCountry "AZE"]
[SourceTitle "playchess.com"]
[Source "ChessBase"]
[SourceQuality "1"]
[WhiteTeam "Azerbaijan"]
[BlackTeam "Moldova"]
[WhiteTeamCountry "AZE"]
[BlackTeamCountry "MDA"]
[TimeControl "40/5400+30:1800+30"]

{[%evp 16,90,0,0,41,0,0,0,0,0,19,-6,44,42,76,76,66,74,78,65,70,47,50,5,0,0,0,0,0,0,0,0,0,0,0,0,0,0,0,0,0,-30,0,-40,0,-16,0,0,113,0,25,22,12,-8,36,0,102,102,102,0,0,-2,0,0,0,-29986,-29987,-29992,-29993,-29993,-29994,-29994,-29995,-29995,-29996,-29998,-29999]} 1. e4 {[%emt 0:00:02]} c5 {[%emt 0:00:06]} 2. Nf3 {[%emt 0:00:17]} Nc6 {[%emt 0:00:05]} 3. d4 {[%emt 0:00:13]} cxd4 {[%emt 0:00:07]} 4. Nxd4 {[%emt 0:00:09]} g6 {[%emt 0:00:05]} 5. Nc3 {[%emt 0:01:18]} Bg7 {[%emt 0:00:05]} 6. Be3 {[%emt 0:00:16]} Nf6 {[%emt 0:00:06]} 7. Nxc6 {[%emt 0:04:02]} bxc6 {[%emt 0:02:35]} 8. e5 {[%emt 0:03:07]} Ng8 {[%emt 0:00:24]} 9. f4 {[%emt 0:02:37]} d5 {[%emt 0:05:50] B34: Sicilian: Accelerated Dragon with 5 Nc3: sidelines.} 10. Bd4 {[%emt 0:13:15]} Nh6 {[%emt 0:06:26]} 11. Bd3 {[%emt 0:09:47]} O-O {[%emt 0:09:14] The position is equal.} 12. O-O {[%emt 0:14:13]} Qa5 {[%emt 0:08:16] [#] Inhibits Na4.} 13. a3 $146 {[%emt 0:05:48] Inhibits Qb4.} ({Predecessor:} 13. Qf3 Rb8 14. Rab1 Be6 15. h3 Rbc8 16. Bf2 Rfd8 17. a3 c5 18. g4 c4 19. Be2 {½-½ (28) Kozin,D (1941)-Kurzykov,A (2035) Dagomys 2009}) 13... Qc7 {[%emt 0:16:05]} (13... f6 $11) 14. Na4 $14 {[%emt 0:07:11]} Nf5 {[%emt 0:04:11]} 15. Bxf5 {[%emt 0:01:01]} Bxf5 {[%emt 0:00:17]} 16. Nc5 {[%emt 0:02:02]} Bd7 {[%emt 0:07:05]} 17. Kh1 {[%emt 0:03:38]} a5 {[%emt 0:03:12]} 18. b4 {[%emt 0:03:53]} ({Of course not} 18. Nxd7 Qxd7 19. Qd2 Rfc8 $11) 18... Rfb8 {[%emt 0:04:56]} 19. bxa5 {[%emt 0:07:26]} Rxa5 {[%emt 0:00:38]} 20. Qd2 {[%emt 0:00:57]} Rba8 {[%emt 0:01:48]} 21. a4 {[%emt 0:01:53]} e6 {[%emt 0:05:02]} 22. Rfb1 {[%emt 0:10:46][%cal Oc5e6]} Qc8 $1 {[%emt 0:04:18]} 23. Ra2 {[%emt 0:05:02]} Bf8 {[%emt 0:01:16]} 24. Qc3 {[%emt 0:01:45]} Bxc5 {[%emt 0:09:55]} 25. Bxc5 {[%emt 0:00:01]} Rxa4 {[%emt 0:00:48]} 26. Rxa4 {[%emt 0:00:01]} Rxa4 {[%emt 0:00:05]} 27. Bd6 {[%emt 0:00:03]} Ra8 {[%emt 0:00:11][%cal Oc6c5] Prevents Rb8.} (27... Rxf4 $2 28. h3 $18) 28. h3 {[%emt 0:00:20]} h6 {[%emt 0:01:16]} (28... c5 $5) 29. Qg3 {[%emt 0:00:43]} Qd8 {[%emt 0:01:25]} 30. Kh2 {[%emt 0:00:19]} Rc8 {[%emt 0:01:24]} 31. Qa3 {[%emt 0:00:48]} Qh4 {[%emt 0:01:14]} (31... c5 $11 {keeps the balance.}) 32. g3 {[%emt 0:00:24]} ({White must play} 32. Qa7 $1 $16 {[%cal Ra7d7]} Be8 33. Kg1) 32... Qh5 {[%emt 0:01:46]} (32... Qd8 $5 {[%cal Rc6c5]}) 33. g4 {[%emt 0:00:57][%mdl 1024] White has compensation.} Qh4 {[%emt 0:00:07] Strongly threatening ...Qf2+.} 34. Qa7 {[%emt 0:01:26] Prevents Qf2+.} Rd8 {[%emt 0:06:00][%cal Bc8d8,Bd8a8,Ba8a4,Ba4c4,Bc4c3,Bc3f3][%mdl 32]} 35. Qc5 {[%emt 0:00:01] Hoping for Be7.} g5 {[%emt 0:00:48] [#]} (35... Re8 $11 {remains equal.}) 36. Be7 $1 $16 {[%emt 0:00:45]} Ra8 {[%emt 0:00:23]} 37. Rf1 {[%emt 0:01:45]} (37. Bf6 $16 {aiming for Kg2.} Be8 38. Rg1) 37... Ra4 $11 {[%emt 0:00:31]} 38. Qd6 {[%emt 0:00:30] Threatening mate with Qb8+.} Rc4 {[%emt 0:00:36]} 39. Qb8+ {[%emt 0:00:08]} Kh7 {[%emt 0:00:18] Really sharp!} (39... Bc8 $5 40. Qb3 $8 (40. Qxc8+ {is a self mate.} Kh7) 40... Ba6 41. fxg5 Bb5 $18) 40. Qb1 {[%emt 0:00:44][%mdl 8192]} (40. Qb3 $11) 40... Rc3 {[%emt 0:00:34] Black mates.} 41. Rf3 {[%emt 0:30:34]} Rxf3 {[%emt 0:30:46]} 42. c3+ {[%emt 0:00:08]} Kg8 {[%emt 0:00:00]} 43. Qb8+ {[%emt 0:00:00] [#]} Bc8 $1 {[%emt 0:00:00]} 44. Qxc8+ {[%emt 0:00:00]} Kh7 {[%emt 0:00:00]} 45. Bf6 {[%emt 0:00:00]} Qg3+ {[%emt 0:00:00] Weighted Error Value: White=0.26 (precise) /Black=0.19 (very precise)} 0-1